fUSD/lending_fUSD_20250826
["ID","MTS","AMOUNT","RATE_DAILY","PERIOD"]
[381458748,1756219844585,-500.0,0.00019,2]
[381458749,1756219844595,-500.0,0.00019,2]
[381458750,1756219844603,-500.0,0.00019,2]
[381458751,1756219844612,-500.0,0.00019,2]
[381458752,1756219844621,-500.0,0.00019,2]
[381458753,1756219844630,-500.0,0.00019,2]
[381458754,1756219844640,-200.0,0.00019,2]
[381458755,1756219844649,-500.0,0.00019,2]
[381458756,1756219844659,-500.0,0.00019,2]
[381458757,1756219844669,-500.0,0.00019,2]
[381458758,1756219844681,-500.0,0.00019,2]
[381458759,1756219844690,-500.0,0.00019,2]
[381458760,1756219844699,-500.0,0.00019,2]
[381458761,1756219844708,-500.0,0.00019,2]
[381458762,1756219844718,-500.0,0.00019,2]
[381458763,1756219844727,-500.0,0.00019,2]
[381458764,1756219844736,-500.0,0.00019,2]
[381458765,1756219844745,-500.0,0.00019,2]
[381458766,1756219844754,-500.0,0.00019,2]
[381458767,1756219844763,-500.0,0.00019,2]
[381458768,1756219844772,-500.0,0.00019,2]
[381458769,1756219844781,-500.0,0.00019,2]
[381458770,1756219844791,-500.0,0.00019,2]
[381458771,1756219844799,-500.0,0.00019,2]
[381458772,1756219844808,-500.0,0.00019,2]
[381458773,1756219844818,-153.73390687,0.00019,2]
[381458774,1756219844827,-1240.0,0.00019001,2]
[381458775,1756219844837,-150.0,0.00019012,2]
[381458776,1756219844846,-150.0,0.00019012,2]
[381458777,1756219844856,-250.0,0.00019012,2]
[381458778,1756219844865,-1000.0,0.00019012,3]
[381458779,1756219844878,-166.12,0.00019041,2]
[381458780,1756219844888,-947.18,0.00019047,2]
[381458781,1756219844898,-500.0,0.00019128,2]
[381458782,1756219844907,-151.0,0.0001913,2]
[381458783,1756219844916,-151.0,0.0001913,2]
[381458784,1756219844927,-151.0,0.0001913,2]
[381458785,1756219844937,-151.0,0.0001913,2]
[381458786,1756219844949,-151.0,0.0001913,2]
[381458787,1756219844958,-152.128389,0.0001913,2]
[381458788,1756219844968,-151.0,0.0001913,2]
[381458789,1756219844977,-1058.517302,0.0001913,2]
[381458790,1756219844987,-1058.517302,0.0001913,2]
[381458791,1756219844996,-1058.517302,0.0001913,2]
[381458792,1756219845006,-1058.517302,0.0001913,2]
[381458793,1756219845017,-3532.888039,0.0001913,2]
[381458794,1756219845027,-3532.888039,0.0001913,2]
[381458795,1756219845037,-3532.888039,0.0001913,2]
[381458796,1756219845047,-3532.888039,0.0001913,2]
[381458797,1756219845058,-151.0,0.0001913,2]
[381458798,1756219845068,-151.0,0.0001913,2]
[381458799,1756219845078,-151.0,0.0001913,2]
[381458800,1756219845088,-151.0,0.0001913,2]
[381458801,1756219845098,-151.0,0.0001913,2]
[381458802,1756219845107,-151.0,0.0001913,2]
[381458803,1756219845117,-151.0,0.0001913,2]
[381458804,1756219845126,-151.0,0.0001913,2]
[381458805,1756219845136,-115401.89709349,0.00019131,2]
[381458806,1756219845191,-3031.37128475,0.00019131,2]
[381458807,1756219845824,-258.763,0.00018405,2]
[381458808,1756219845834,-882.16398951,0.000189,2]
[381458809,1756219846205,-4117.83601049,0.000189,2]
[381458810,1756219846215,-203.674638,0.0001913,2]
[381458811,1756219846225,-282.8274863,0.00019131,2]
[381458826,1756219925555,328.71,0.00013699,2]
[381458827,1756219925809,150.0,0.00014199,3]
[381458829,1756219997196,428.705012,0.0002831,120]
[381458926,1756220785825,250.0,0.00015,2]
[381458927,1756220788725,210.0,0.00015,10]
[381458977,1756221032183,-150.0,0.000155,3]
[381458979,1756221032193,-150.0,0.00015803,2]
[381458981,1756221032203,-1000.0,0.00015803,3]
[381458982,1756221032212,-250.0,0.00016106,2]
[381458983,1756221032222,-150.0,0.00016404,2]
[381458984,1756221032233,-250.0,0.00016703,2]
[381458985,1756221032243,-190.5,0.00016712,2]
[381458986,1756221032252,-300.0,0.00017,2]
[381458987,1756221032262,-150.0,0.0001705,2]
[381458988,1756221032271,-250.0,0.0001705,2]
[381458989,1756221032280,-150.0,0.0001705,2]
[381458990,1756221032290,-1000.0,0.0001705,3]
[381458991,1756221032299,-1000.0,0.00017592,2]
[381458992,1756221032308,-174.35,0.00017616,2]
[381458993,1756221032318,-1200.0,0.0001767,2]
[381458994,1756221032327,-1291.48,0.00017671,2]
[381458995,1756221032337,-150.99,0.00017671,2]
[381458996,1756221032346,-300.0,0.0001774,3]
[381458997,1756221032356,-200.0,0.00017755,2]
[381458998,1756221032365,-300.0,0.00017764,2]
[381458999,1756221032375,-666.0,0.00017765,3]
[381459000,1756221032384,-150.0,0.00017878,2]
[381459001,1756221032394,-160.0,0.000179,7]
[381459002,1756221032404,-18066.68000003,0.00018118,2]
[381459003,1756221032415,-774.573,0.00018118,2]
[381459006,1756221032464,-150.0,0.00016,3]
[381459007,1756221032474,-2192.77642954,0.00018118,2]
[381459008,1756221032486,-69.97057043,0.00018118,2]
[381459009,1756221032495,-2740.5128463,0.00018118,2]
[381459010,1756221032507,-363.7771791,0.00018118,2]
[381459011,1756221032519,-3041.7099746,0.00018118,2]
[381459012,1756221032529,-4155.0,0.00018118,2]
[381459013,1756221032539,-718.0,0.00018118,2]
[381459014,1756221032549,-3288.27436111,0.00018131,3]
[381459017,1756221032570,-2497.74613487,0.00018131,3]
[381459019,1756221032580,-300.0,0.0001824,3]
[381459021,1756221032589,-150.0,0.00018384,2]
[381459023,1756221032599,-695.39793187,0.00018407,2]
[381459025,1756221032609,-322.6107,0.00018407,2]
[381459027,1756221032618,-500.0,0.00018407,2]
[381459029,1756221032627,-267.46074303,0.00018407,2]
[381459031,1756221032637,-19206.62297896,0.00018415,2]
[381459033,1756221032647,-150.0,0.00018417,2]
[381459035,1756221032656,-150.0,0.00018418,2]
[381459037,1756221032666,-150.0,0.00018418,2]
[381459039,1756221032676,-3374.0,0.00018418,2]
[381459042,1756221032685,-1256.0,0.00018418,2]
[381459044,1756221032695,-926.0,0.00018418,2]
[381459046,1756221032705,-2031.0,0.00018418,2]
[381459048,1756221032714,-1658.0,0.00018418,2]
[381459051,1756221032724,-599.0,0.00018418,2]
[381459052,1756221032734,-1298.0,0.00018418,2]
[381459054,1756221032743,-566.0,0.00018418,2]
[381459056,1756221032753,-895.0,0.00018418,2]
[381459058,1756221032763,-1173.0,0.00018418,2]
[381459060,1756221032772,-500.0,0.00018462,2]
[381459062,1756221032782,-500.0,0.00018517,2]
[381459065,1756221032791,-182.80026418,0.00018557,2]
[381459067,1756221032801,-500.0,0.00018572,2]
[381459069,1756221032810,-353.0,0.000186,2]
[381459071,1756221032820,-500.0,0.00018627,2]
[381459072,1756221032830,-2381.947,0.0001864,2]
[381459075,1756221032840,-500.0,0.00018682,2]
[381459077,1756221032848,-173.244,0.00018683,2]
[381459079,1756221032858,-500.0,0.00018737,2]
[381459080,1756221032867,-281.0,0.00018743,2]
[381459083,1756221032877,-281.0,0.00018743,2]
[381459084,1756221032886,-281.0,0.00018743,2]
[381459086,1756221032895,-281.0,0.00018743,2]
[381459088,1756221032905,-281.0,0.00018743,2]
[381459090,1756221032914,-281.0,0.00018743,2]
[381459092,1756221032925,-281.0,0.00018743,2]
[381459094,1756221032935,-281.0,0.00018743,2]
[381459096,1756221032944,-281.0,0.00018743,2]
[381459098,1756221032953,-281.0,0.00018743,2]
[381459100,1756221032963,-281.0,0.00018743,2]
[381459101,1756221032972,-281.0,0.00018743,2]
[381459102,1756221032982,-281.0,0.00018743,2]
[381459103,1756221032994,-281.0,0.00018743,2]
[381459104,1756221033008,-531.0,0.00018745,2]
[381459105,1756221033018,-531.0,0.00018745,2]
[381459106,1756221033028,-531.0,0.00018745,2]
[381459107,1756221033038,-531.0,0.00018745,2]
[381459108,1756221033048,-531.0,0.00018745,2]
[381459109,1756221033059,-531.0,0.00018745,2]
[381459110,1756221033069,-531.0,0.00018745,2]
[381459111,1756221033078,-531.0,0.00018745,2]
[381459112,1756221033088,-531.0,0.00018745,2]
[381459113,1756221033098,-262.12826283,0.00018745,2]
[381459114,1756221033111,-268.87173717,0.00018745,2]
[381459115,1756221033121,-531.0,0.00018745,2]
[381459116,1756221033139,-531.0,0.00018745,2]
[381459117,1756221033148,-531.0,0.00018745,2]
[381459118,1756221033163,-531.0,0.00018745,2]
[381459119,1756221033175,-281.0,0.00018751,2]
[381459120,1756221033184,-281.0,0.00018751,2]
[381459121,1756221033194,-281.0,0.00018751,2]
[381459123,1756221033204,-281.0,0.00018751,2]
[381459125,1756221033214,-281.0,0.00018751,2]
[381459127,1756221033224,-281.0,0.00018751,2]
[381459128,1756221033234,-281.0,0.00018751,2]
[381459130,1756221033244,-281.0,0.00018751,2]
[381459132,1756221033253,-281.0,0.00018751,2]
[381459134,1756221033263,-281.0,0.00018751,2]
[381459135,1756221033272,-281.0,0.00018751,2]
[381459136,1756221033281,-281.0,0.00018751,2]
[381459137,1756221033290,-281.0,0.00018751,2]
[381459138,1756221033299,-281.0,0.00018751,2]
[381459139,1756221033309,-531.0,0.00018753,2]
[381459140,1756221033318,-531.0,0.00018753,2]
[381459141,1756221033327,-531.0,0.00018753,2]
[381459142,1756221033336,-531.0,0.00018753,2]
[381459143,1756221033345,-531.0,0.00018753,2]
[381459144,1756221033355,-531.0,0.00018753,2]
[381459145,1756221033364,-531.0,0.00018753,2]
[381459146,1756221033373,-531.0,0.00018753,2]
[381459147,1756221033382,-531.0,0.00018753,2]
[381459148,1756221033391,-531.0,0.00018753,2]
[381459149,1756221033401,-531.0,0.00018753,2]
[381459150,1756221033410,-531.0,0.00018753,2]
[381459151,1756221033420,-531.0,0.00018753,2]
[381459152,1756221033429,-531.0,0.00018753,2]
[381459153,1756221033439,-281.0,0.0001876,2]
[381459155,1756221033448,-281.0,0.0001876,2]
[381459157,1756221033459,-281.0,0.0001876,2]
[381459159,1756221033468,-281.0,0.0001876,2]
[381459161,1756221033478,-281.0,0.0001876,2]
[381459163,1756221033487,-281.0,0.0001876,2]
[381459164,1756221033496,-281.0,0.0001876,2]
[381459165,1756221033506,-281.0,0.0001876,2]
[381459166,1756221033516,-281.0,0.0001876,2]
[381459167,1756221033525,-281.0,0.0001876,2]
[381459168,1756221033534,-281.0,0.0001876,2]
[381459169,1756221033544,-281.0,0.0001876,2]
[381459170,1756221033554,-281.0,0.0001876,2]
[381459171,1756221033565,-281.0,0.0001876,2]
[381459172,1756221033574,-531.0,0.00018762,2]
[381459173,1756221033584,-531.0,0.00018762,2]
[381459174,1756221033595,-531.0,0.00018762,2]
[381459175,1756221033605,-531.0,0.00018762,2]
[381459176,1756221033615,-531.0,0.00018762,2]
[381459177,1756221033624,-531.0,0.00018762,2]
[381459178,1756221033634,-531.0,0.00018762,2]
[381459179,1756221033643,-531.0,0.00018762,2]
[381459180,1756221033653,-531.0,0.00018762,2]
[381459181,1756221033663,-531.0,0.00018762,2]
[381459182,1756221033674,-531.0,0.00018762,2]
[381459183,1756221033684,-531.0,0.00018762,2]
[381459184,1756221033694,-531.0,0.00018762,2]
[381459185,1756221033704,-531.0,0.00018762,2]
[381459186,1756221033714,-281.0,0.00018769,2]
[381459187,1756221033724,-281.0,0.00018769,2]
[381459188,1756221033734,-281.0,0.00018769,2]
[381459189,1756221033744,-281.0,0.00018769,2]
[381459190,1756221033754,-281.0,0.00018769,2]
[381459191,1756221033764,-281.0,0.00018769,2]
[381459192,1756221033773,-281.0,0.00018769,2]
[381459193,1756221033784,-281.0,0.00018769,2]
[381459194,1756221033793,-281.0,0.00018769,2]
[381459195,1756221033804,-281.0,0.00018769,2]
[381459196,1756221033813,-281.0,0.00018769,2]
[381459197,1756221033823,-281.0,0.00018769,2]
[381459198,1756221033832,-281.0,0.00018769,2]
[381459199,1756221033842,-281.0,0.00018769,2]
[381459200,1756221033852,-531.0,0.00018771,2]
[381459201,1756221033862,-531.0,0.00018771,2]
[381459202,1756221033872,-531.0,0.00018771,2]
[381459203,1756221033882,-531.0,0.00018771,2]
[381459204,1756221033891,-531.0,0.00018771,2]
[381459205,1756221033901,-531.0,0.00018771,2]
[381459206,1756221033910,-531.0,0.00018771,2]
[381459207,1756221033921,-531.0,0.00018771,2]
[381459208,1756221033930,-531.0,0.00018771,2]
[381459209,1756221033940,-531.0,0.00018771,2]
[381459210,1756221033950,-531.0,0.00018771,2]
[381459211,1756221033960,-531.0,0.00018771,2]
[381459212,1756221033969,-531.0,0.00018771,2]
[381459213,1756221033979,-531.0,0.00018771,2]
[381459214,1756221033988,-500.0,0.00018792,2]
[381459215,1756221033998,-503.0,0.00018822,2]
[381459216,1756221034007,-1500.0,0.00018822,2]
[381459217,1756221034017,-500.0,0.00018847,2]
[381459218,1756221034027,-1001.0,0.000189,2]
[381459219,1756221034039,-500.0,0.00018902,2]
[381459220,1756221034049,-150.0,0.00018904,2]
[381459221,1756221034059,-150.0,0.00018904,2]
[381459222,1756221034068,-500.0,0.00018904,2]
[381459223,1756221034078,-1056.0,0.00018904,2]
[381459224,1756221034087,-150.0,0.00018904,2]
[381459225,1756221034097,-200.0,0.00018904,2]
[381459226,1756221034107,-500.0,0.00018904,2]
[381459227,1756221034122,-300.0,0.00018904,2]
[381459228,1756221034133,-150.0,0.00018904,2]
[381459229,1756221034143,-150.0,0.00018904,2]
[381459230,1756221034153,-150.0,0.00018904,2]
[381459231,1756221034165,-676.0,0.00018904,2]
[381459232,1756221034182,-500.0,0.00018904,2]
[381459233,1756221034192,-453.0,0.00018904,2]
[381459234,1756221034203,-1162.0,0.00018904,2]
[381459235,1756221034213,-150.0,0.00018904,2]
[381459236,1756221034223,-207.76605804,0.00018904,2]
[381459237,1756221034232,-500.0,0.00018904,2]
[381459238,1756221034572,-200.0,0.00018913,2]
[381459239,1756221034582,-18673.9667497,0.00018935,2]
[381459240,1756221034591,-500.0,0.00018957,2]
[381459241,1756221034601,-1500.0,0.00019073,2]
[381459242,1756221034611,-189.84352408,0.00019078,2]
[381459243,1756221034620,-20612.40058081,0.00019088,2]
[381459244,1756221035572,-2586.31741292,0.00019088,2]
[381459246,1756221038195,-782.54342496,0.00019088,2]
[381459413,1756221040223,-676.8,0.00019088,2]
[381459416,1756221040237,-4566.67068284,0.00019088,2]
[381459425,1756221040321,-1393.32967665,0.00019088,2]
[381459427,1756221040334,-5970.14500009,0.00019088,2]
[381459438,1756221040440,-1417.5,0.00019088,2]
[381459441,1756221040451,-581.34790231,0.00019088,2]
[381459449,1756221040522,-966.02392035,0.00019088,2]
[381459734,1756221043224,-500.0,0.00016438,2]
[381459736,1756221043235,-8670.54060024,0.00019088,2]
[381459738,1756221043245,-11860.6076403,0.00019115,2]
[381459740,1756221043254,-869.0989454,0.00019115,2]
[381459742,1756221043263,-4326.4381206,0.00019117,2]
[381459744,1756221043272,-203.2191747,0.00019117,2]
[381459746,1756221043282,-7419.66612187,0.00019131,2]
[381459749,1756221043298,-340.9864976,0.00019131,2]
[381459756,1756221043355,-428.70501228,0.00019131,2]
[381459802,1756221043914,-300.45016721,0.00019131,2]
[381459804,1756221043926,-1705.335,0.00019131,2]
[381460079,1756221046651,-150.0,0.00018904,2]
[381460081,1756221046662,-150.0,0.00018904,2]
[381460083,1756221046671,-2625.05456883,0.00019131,2]
[381460086,1756221046685,-8358.7870857,0.00019131,2]
[381460088,1756221046702,-228.0,0.00018735,2]
[381460090,1756221046711,-923.91557768,0.00019131,2]
[381460093,1756221046723,-805.65217653,0.00019131,2]
[381460095,1756221046734,-472.11696262,0.00019131,2]
[381460097,1756221046746,-268.55858718,0.00019131,2]
[381460100,1756221046757,-1138.35,0.00019131,2]
[381460102,1756221046769,-62895.05637796,0.00019131,2]
[381460104,1756221046778,-1071.036,0.00019131,2]
[381460106,1756221046787,-217.0,0.0001916,2]
[381460108,1756221046796,-500.0,0.00019173,2]
[381460110,1756221046807,-500.0,0.00019173,2]
[381460112,1756221046816,-500.0,0.00019173,2]
[381460114,1756221046825,-150.0,0.00019174,2]
[381460116,1756221046834,-500.0,0.00019174,2]
[381460118,1756221046843,-150.0,0.00019178,2]
[381460120,1756221046853,-150.0,0.00019178,2]
[381460122,1756221046862,-500.0,0.00019178,2]
[381460124,1756221046871,-1056.0,0.00019178,2]
[381460126,1756221046881,-200.0,0.00019178,2]
[381460128,1756221046891,-150.0,0.00019178,2]
[381460130,1756221046901,-676.0,0.00019178,2]
[381460132,1756221046911,-500.0,0.00019178,2]
[381460134,1756221046920,-453.0,0.00019178,2]
[381460136,1756221046929,-1162.0,0.00019178,2]
[381460138,1756221046945,-150.0,0.00019178,2]
[381460140,1756221046954,-500.0,0.00019178,2]
[381460142,1756221046963,-150.0,0.00019178,2]
[381460144,1756221046972,-151.0,0.00019178,2]
[381460146,1756221046981,-200.12312063,0.00019178,2]
[381460148,1756221046990,-5000.0,0.00019178,2]
[381460150,1756221047000,-150.0,0.00019178,2]
[381460152,1756221047009,-7167.61018641,0.00019186,2]
[381460154,1756221047019,-472.68373516,0.00019258,2]
[381460156,1756221047028,-245.89,0.00019295,2]
[381460158,1756221047038,-1680.0,0.00019382,2]
[381460160,1756221047048,-1016.51968239,0.000194,2]
[381460162,1756221047057,-450.0,0.00019446,2]
[381460164,1756221047067,-150.0,0.00019448,2]
[381460166,1756221047076,-535.14518406,0.00019448,2]
[381460168,1756221047085,-200.0,0.00019452,2]
[381460170,1756221047095,-150.0,0.00019452,2]
[381460172,1756221047104,-500.0,0.00019452,2]
[381460174,1756221047114,-1056.0,0.00019452,2]
[381460176,1756221047123,-250.0,0.00019452,2]
[381460178,1756221047132,-676.0,0.00019452,2]
[381460180,1756221047141,-500.0,0.00019452,2]
[381460182,1756221047152,-453.0,0.00019452,2]
[381460184,1756221047164,-1162.0,0.00019452,2]
[381460186,1756221047174,-150.0,0.00019452,2]
[381460188,1756221047188,-500.0,0.00019452,2]
[381460190,1756221047199,-150.0,0.00019452,2]
[381460192,1756221047208,-209.0,0.0001949,2]
[381460194,1756221047217,-229.0,0.0001949,2]
[381460196,1756221047227,-159.29703053,0.000195,2]
[381460198,1756221047238,-500.0,0.00019599,2]
[381460200,1756221047248,-64503.1289528,0.000196,2]
[381460202,1756221047259,-5416.05864595,0.000196,2]
[381460204,1756221047268,-844.63891918,0.00019665,2]
[381460206,1756221047277,-212.18043798,0.00019665,2]
[381460208,1756221047287,-458.7662338,0.00019665,2]
[381460210,1756221047295,-160.0,0.00019665,2]
[381460212,1756221047305,-1000.0,0.00019721,2]
[381460214,1756221047315,-1000.0,0.00019721,2]
[381460216,1756221047325,-150.0,0.00019722,2]
[381460218,1756221047334,-274.37490696,0.00019726,2]
[381460220,1756221047343,-500.0,0.00019726,2]
[381460222,1756221047352,-1056.0,0.00019726,2]
[381460224,1756221047361,-676.0,0.00019726,2]
[381460226,1756221047370,-500.0,0.00019726,2]
[381460228,1756221047380,-453.0,0.00019726,2]
[381460230,1756221047389,-1162.0,0.00019726,2]
[381460232,1756221047398,-150.0,0.00019726,2]
[381460234,1756221047407,-500.0,0.00019726,2]
[381460236,1756221047416,-150.0,0.00019726,2]
[381460238,1756221047425,-156.587,0.00019726,2]
[381460240,1756221047436,-405.0,0.00019765,2]
[381460242,1756221047445,-334.5472959,0.00019776,2]
[381460244,1756221047455,-277.35679052,0.00019776,2]
[381460246,1756221047464,-346.0,0.0001978,2]
[381460248,1756221047473,-1000.0,0.00019791,2]
[381460250,1756221047482,-1000.0,0.000198,3]
[381460252,1756221047492,-1000.0,0.000198,4]
[381460254,1756221047502,-241.0,0.000198,2]
[381460256,1756221047511,-510.0,0.000198,2]
[381460258,1756221047520,-381.0,0.000198,2]
[381460260,1756221047530,-778.0,0.000198,2]
[381460262,1756221047539,-704.6,0.00019863,2]
[381460264,1756221047549,-500.0,0.00019873,2]
[381460266,1756221047558,-1300.0,0.000199,4]
[381460268,1756221047569,-5000.0,0.000199,2]
[381460270,1756221047578,-2371.64,0.00019922,2]
[381460272,1756221047588,-301.85,0.00019922,2]
[381460274,1756221047598,-309.54,0.00019922,2]
[381460276,1756221047607,-294.43,0.00019922,2]
[381460278,1756221047617,-300.0,0.00019922,2]
[381460280,1756221047626,-301.16,0.00019923,2]
[381460282,1756221047635,-514.0,0.0001997,2]
[381460284,1756221047645,-2000.0,0.00019972,2]
[381460286,1756221047655,-500.0,0.00019973,2]
[381460327,1756221048037,-556.28740821,0.00019973,2]
[381460329,1756221048047,-500.0,0.00019973,2]
[381460331,1756221048057,-500.0,0.00019973,2]
[381460333,1756221048067,-500.0,0.00019973,2]
[381460335,1756221048077,-315.29,0.00019973,2]
[381460337,1756221048086,-150.0,0.0001998,2]
[381460339,1756221048096,-824.83156973,0.00019981,2]
[381460341,1756221048105,-1051.2559222,0.00019982,2]
[381460343,1756221048116,-1277.68027467,0.00019983,2]
[381460345,1756221048126,-1504.10462715,0.00019984,2]
[381460347,1756221048136,-1730.52897962,0.00019986,2]
[381460349,1756221048145,-1956.95333209,0.00019987,2]
[381460351,1756221048156,-2183.37768457,0.00019988,2]
[381460353,1756221048168,-2409.80203704,0.00019989,2]
[381460355,1756221048177,-51535.6976133,0.0001999,2]
[381460357,1756221048194,-1338.7516532,0.0001999,2]
[381460359,1756221048206,-267.37,0.0001999,2]
[381460361,1756221048220,-5756.49,0.0001999,2]
[381460364,1756221048232,-11957.03672676,0.0001999,2]
[381460366,1756221048243,-2636.22638951,0.0001999,2]
[381460368,1756221048253,-162.06009613,0.00019996,2]
[381460370,1756221048263,-2000.0,0.00019999,2]
[381460372,1756221048273,-1000.0,0.00019999,2]
[381460374,1756221048283,-1000.0,0.00019999,2]
[381460376,1756221048292,-1000.0,0.00019999,2]
[381460378,1756221048301,-500.0,0.0002,2]
[381460380,1756221048311,-1056.0,0.0002,2]
[381460382,1756221048320,-676.0,0.0002,2]
[381460384,1756221048330,-500.0,0.0002,2]
[381460385,1756221048339,-453.0,0.0002,2]
[381460387,1756221048349,-1162.0,0.0002,2]
[381460389,1756221048358,-250.0,0.0002,2]
[381460392,1756221048368,-500.0,0.0002,2]
[381460394,1756221048378,-199.17088888,0.0002,2]
[381460395,1756221048387,-45941.74704322,0.0002,2]
[381460397,1756221048398,-882.81,0.0002,2]
[381460399,1756221048407,-1999.96,0.0002,2]
[381460401,1756221048418,-93291.36019056,0.0002,2]
[381460403,1756221048427,-2523.0540456,0.0002,2]
[381460405,1756221048438,-1503.75078917,0.0002,2]
[381460407,1756221048447,-6007.65507991,0.0002,2]
[381460409,1756221048457,-25103.80418119,0.0002,2]
[381460411,1756221048467,-44334.08221248,0.0002,5]
[381460413,1756221048478,-8300.0,0.0002,4]
[381460415,1756221048487,-5737.62477734,0.0002,2]
[381460417,1756221048498,-3950.0,0.0002,2]
[381460419,1756221048507,-1269.89630392,0.0002,2]
[381460421,1756221048518,-7234.50682646,0.0002,2]
[381460423,1756221048528,-150.0,0.0002,2]
[381460425,1756221048538,-4614.93992236,0.0002,5]
[381460427,1756221048548,-1025.06797498,0.0002,2]
[381460429,1756221048557,-2808.2698883,0.0002,2]
[381460431,1756221048567,-90292.4081162,0.0002,2]
[381460433,1756221048577,-99102.19861639,0.0002,2]
[381460435,1756221048588,-1233.97280833,0.0002,2]
[381460437,1756221048598,-2000.0,0.0002,2]
[381460439,1756221048608,-1002.34,0.0002,2]
[381460441,1756221048620,-2000.0,0.0002,2]
[381460443,1756221048630,-2000.0,0.0002,2]
[381460445,1756221048640,-2000.0,0.0002,2]
[381460447,1756221048649,-2000.0,0.0002,2]
[381460449,1756221048659,-2000.0,0.0002,2]
[381460451,1756221048669,-1728.27,0.0002,2]
[381460453,1756221048678,-213.59,0.0002,2]
[381460455,1756221048689,-217.0,0.0002,2]
[381460457,1756221048699,-785.78150524,0.0002,7]
[381460459,1756221048708,-4104.45546725,0.0002,2]
[381460461,1756221048718,-888.0,0.0002,2]
[381460463,1756221048728,-6050.0,0.0002,7]
[381460465,1756221048737,-391.0,0.0002,2]
[381460467,1756221048747,-165.7,0.0002,2]
[381460469,1756221048756,-200.0,0.0002,2]
[381460470,1756221048765,-9117.35957655,0.0002001,2]
[381460472,1756221048775,-5028.85142036,0.0002001,2]
[381460474,1756221048784,-5772.0,0.0002001,2]
[381460476,1756221048794,-152.0,0.00020033,2]
[381460478,1756221048803,-152.0,0.00020033,2]
[381460480,1756221048812,-152.0,0.00020033,2]
[381460482,1756221048822,-152.0,0.00020033,2]
[381460484,1756221048831,-152.0,0.00020033,2]
[381460486,1756221048841,-152.0,0.00020033,2]
[381460488,1756221048851,-152.0,0.00020033,2]
[381460490,1756221048861,-152.0,0.00020033,2]
[381460492,1756221048870,-364.5,0.00020084,2]
[381460493,1756221048880,-1000.0,0.00020093,2]
[381460496,1756221048890,-500.0,0.00020147,2]
[381460497,1756221048900,-328.71,0.00020187,2]
[381460499,1756221048909,-1709.0,0.00020188,2]
[381460501,1756221048919,-767.53092271,0.00020268,2]
[381460503,1756221048929,-1500.0,0.00020268,2]
[381460505,1756221048939,-500.0,0.00020274,2]
[381460507,1756221048949,-1056.0,0.00020274,2]
[381460509,1756221048958,-676.0,0.00020274,2]
[381460511,1756221048968,-500.0,0.00020274,2]
[381460513,1756221048978,-453.0,0.00020274,2]
[381460515,1756221048987,-1162.0,0.00020274,2]
[381460517,1756221048997,-500.0,0.00020274,2]
[381460519,1756221049007,-162.380719,0.00020274,2]
[381460521,1756221049017,-1000.0,0.00020314,2]
[381460523,1756221049026,-209.0,0.0002032,2]